[Event "EIRCC 2019"]
[Site "Tallinn"]
[Date "2019.12.05"]
[Round "1.24"]
[White "Saric, Ante"]
[Black "Mitskevich, Yauheniya"]
[Result "1-0"]
[ECO "E95"]
[WhiteElo "2538"]
[BlackElo "1951"]
[Annotator "ChessBase"]
[PlyCount "63"]
[EventDate "2019.12.05"]
[EventType "swiss"]
[EventCountry "EST"]
[SourceTitle "playchess.com"]
[Source "ChessBase"]
[SourceQuality "1"]
[TimeControl "900+10"]

1. c4 {[%emt 0:00:00]} Nf6 {[%emt 0:00:00]} 2. Nc3 {[%emt 0:00:00]} g6 {[%emt 0:00:00]} 3. e4 {[%emt 0:00:00]} d6 {[%emt 0:00:00]} 4. d4 {[%emt 0:00:00]} Bg7 {[%emt 0:00:00]} 5. Be2 {[%emt 0:00:00]} O-O {[%emt 0:00:02]} 6. Nf3 {[%emt 0:00:02]} Nbd7 {[%emt 0:00:34]} 7. O-O {[%emt 0:00:03]} e5 {[%emt 0:00:16]} 8. Re1 {[%emt 0:00:02]} Re8 {[%emt 0:00:53]} 9. Bf1 {[%emt 0:00:05]} h6 {[%emt 0:01:34]} 10. Qc2 {[%emt 0:01:40]} exd4 {[%emt 0:03:34]} 11. Nxd4 {[%emt 0:00:02]} Ng4 {[%emt 0:00:07]} 12. Nb3 {[%emt 0:01:10]} f5 {[%emt 0:02:43]} 13. h3 {[%emt 0:00:30]} Ngf6 {[%emt 0:00:42]} 14. Bd2 {[%emt 0:00:03]} Ne5 {[%emt 0:00:32]} 15. f4 {[%emt 0:00:09]} Nf7 {[%emt 0:00:55]} 16. Bd3 {[%emt 0:00:03]} fxe4 {[%emt 0:03:15]} 17. Nxe4 {[%emt 0:00:03]} Nxe4 {[%emt 0:00:53]} 18. Bxe4 {[%emt 0:00:05]} g5 {[%emt 0:00:02]} 19. Bh7+ {[%emt 0:00:07]} Kh8 {[%emt 0:00:10]} 20. Bg6 {[%emt 0:00:12]} Rf8 {[%emt 0:00:41]} 21. fxg5 {[%emt 0:04:42]} Nxg5 {[%emt 0:00:11]} 22. Rf1 {[%emt 0:00:45]} Nxh3+ {[%emt 0:00:50]} 23. gxh3 {[%emt 0:00:04]} Bxh3 {[%emt 0:00:05]} 24. Rxf8+ {[%emt 0:00:18]} Qxf8 {[%emt 0:00:02]} 25. Qd3 {[%emt 0:00:04]} Be6 {[%emt 0:00:21]} 26. Rf1 {[%emt 0:00:54]} Qe7 {[%emt 0:00:04]} 27. Nd4 {[%emt 0:00:10]} Rg8 {[%emt 0:00:15]} 28. Rf2 {[%emt 0:01:13]} c5 {[%emt 0:00:05]} 29. Nxe6 {[%emt 0:00:56]} Qxe6 {[%emt 0:00:02]} 30. Bc3 {[%emt 0:00:08]} Be5 {[%emt 0:00:26]} 31. Rg2 {[%emt 0:00:09]} Rf8 {[%emt 0:00:14]} 32. Qe3 {[%emt 0:06:03] Bh2+} 1-0

[Event "EIRCC 2019"]
[Site "Tallinn"]
[Date "2019.12.05"]
[Round "1.25"]
[White "Efremov, Vladislav"]
[Black "Hjartarson, Johann"]
[Result "1/2-1/2"]
[ECO "E11"]
[WhiteElo "1949"]
[BlackElo "2534"]
[Annotator "ChessBase"]
[PlyCount "55"]
[EventDate "2019.12.05"]
[EventType "swiss"]
[EventCountry "EST"]
[SourceTitle "playchess.com"]
[Source "ChessBase"]
[SourceQuality "1"]
[TimeControl "900+10"]

1. d4 {[%emt 0:00:00]} Nf6 {[%emt 0:00:00]} 2. c4 {[%emt 0:00:00]} e6 {[%emt 0:00:00]} 3. Nf3 {[%emt 0:00:00]} Bb4+ {[%emt 0:00:03]} 4. Bd2 {[%emt 0:00:03]} a5 {[%emt 0:00:07]} 5. a3 {[%emt 0:00:01]} Bxd2+ {[%emt 0:00:06]} 6. Qxd2 {[%emt 0:00:02]} d6 {[%emt 0:00:25]} 7. Nc3 {[%emt 0:00:07]} Nbd7 {[%emt 0:00:19]} 8. g4 {[%emt 0:00:20]} h6 {[%emt 0:00:31]} 9. Rg1 {[%emt 0:03:03]} c6 {[%emt 0:02:03]} 10. h4 {[%emt 0:00:20]} d5 {[%emt 0:00:10]} 11. g5 {[%emt 0:00:37]} hxg5 {[%emt 0:00:08]} 12. hxg5 {[%emt 0:00:02]} Ne4 {[%emt 0:00:19]} 13. Nxe4 {[%emt 0:00:19]} dxe4 {[%emt 0:00:04]} 14. Ne5 {[%emt 0:00:01]} Rh4 {[%emt 0:02:59]} 15. c5 {[%emt 0:01:48]} Nxe5 {[%emt 0:00:42]} 16. dxe5 {[%emt 0:00:02]} Qd5 {[%emt 0:00:24]} 17. Rd1 {[%emt 0:00:45]} Qxd2+ {[%emt 0:00:56]} 18. Kxd2 {[%emt 0:00:36]} a4 {[%emt 0:00:39]} 19. e3 {[%emt 0:00:44]} Ke7 {[%emt 0:01:58]} 20. Be2 {[%emt 0:01:47]} Rh2 {[%emt 0:01:02]} 21. Ke1 {[%emt 0:00:39]} Ra5 {[%emt 0:00:53]} 22. Rc1 {[%emt 0:00:02]} Bd7 {[%emt 0:00:15]} 23. Rc2 {[%emt 0:01:31]} Be8 {[%emt 0:00:14]} 24. Rg4 {[%emt 0:01:33]} Rh1+ {[%emt 0:00:08]} 25. Kd2 {[%emt 0:00:06]} Rh2 {[%emt 0:00:04]} 26. Ke1 {[%emt 0:00:40]} Rh1+ {[%emt 0:00:07]} 27. Kd2 {[%emt 0:00:04]} Rh2 {[%emt 0:00:02]} 28. Rxe4 1/2-1/2

[Event "EIRCC 2019"]
[Site "Tallinn"]
[Date "2019.12.05"]
[Round "1.26"]
[White "Stocek, Jiri"]
[Black "Kirchei, Viktoriia"]
[Result "1-0"]
[ECO "E48"]
[WhiteElo "2532"]
[BlackElo "1948"]
[Annotator "ChessBase"]
[PlyCount "63"]
[EventDate "2019.12.05"]
[EventType "swiss"]
[EventCountry "EST"]
[SourceTitle "playchess.com"]
[Source "ChessBase"]
[SourceQuality "1"]
[TimeControl "900+10"]

1. d4 {[%emt 0:00:00]} Nf6 {[%emt 0:00:00]} 2. c4 {[%emt 0:00:00]} e6 {[%emt 0:00:00]} 3. Nc3 {[%emt 0:00:01]} Bb4 {[%emt 0:00:00]} 4. e3 {[%emt 0:00:03]} O-O {[%emt 0:00:00]} 5. Bd3 {[%emt 0:00:03]} d5 {[%emt 0:00:04]} 6. Nge2 {[%emt 0:00:15]} a6 {[%emt 0:00:46]} 7. O-O {[%emt 0:00:31]} dxc4 {[%emt 0:00:31]} 8. Bxc4 {[%emt 0:00:04]} b5 {[%emt 0:00:01]} 9. Bd3 {[%emt 0:00:12]} Bb7 {[%emt 0:00:04]} 10. a3 {[%emt 0:00:18]} Bxc3 {[%emt 0:00:11]} 11. Nxc3 {[%emt 0:00:20]} Nc6 {[%emt 0:01:12]} 12. Ne4 {[%emt 0:01:25]} Nxe4 {[%emt 0:01:57]} 13. Bxe4 {[%emt 0:00:03]} Qh4 {[%emt 0:00:08]} 14. f4 {[%emt 0:01:14]} f5 {[%emt 0:01:54]} 15. Bf3 {[%emt 0:00:53]} Na5 {[%emt 0:01:38]} 16. Bd2 {[%emt 0:01:42]} Bxf3 {[%emt 0:00:17]} 17. Qxf3 {[%emt 0:00:05]} Nb3 {[%emt 0:02:48]} 18. Rad1 {[%emt 0:00:03]} Nxd2 {[%emt 0:00:01]} 19. Rxd2 {[%emt 0:00:01]} Qe7 {[%emt 0:00:08]} 20. Rc1 {[%emt 0:00:17]} Rac8 {[%emt 0:00:25]} 21. Rdc2 {[%emt 0:00:25]} b4 {[%emt 0:01:08]} 22. a4 {[%emt 0:00:03]} b3 {[%emt 0:00:06]} 23. Rc5 {[%emt 0:00:13]} Rb8 {[%emt 0:01:47]} 24. Qc6 {[%emt 0:02:05]} Rb4 {[%emt 0:00:11]} 25. Qxa6 {[%emt 0:00:16]} Qd6 {[%emt 0:00:23]} 26. Qa5 {[%emt 0:01:50]} Rfb8 {[%emt 0:01:47]} 27. Rxc7 {[%emt 0:00:28]} h5 {[%emt 0:01:15]} 28. R1c6 {[%emt 0:00:17]} Qd5 {[%emt 0:00:12]} 29. Qa7 {[%emt 0:00:40]} R4b7 {[%emt 0:00:34]} 30. Rxb7 {[%emt 0:00:11]} Rxb7 {[%emt 0:00:04]} 31. Qxb7 {[%emt 0:00:06]} Qe4 {[%emt 0:00:01]} 32. Rc8+ {[%emt 0:00:02]} 1-0

[Event "EIRCC 2019"]
[Site "Tallinn"]
[Date "2019.12.05"]
[Round "1.28"]
[White "Lintchevski, Daniil"]
[Black "Tskhadadze, Anna"]
[Result "1-0"]
[ECO "B01"]
[WhiteElo "2515"]
[BlackElo "1946"]
[Annotator "ChessBase"]
[PlyCount "95"]
[EventDate "2019.12.05"]
[EventType "swiss"]
[EventCountry "EST"]
[SourceTitle "playchess.com"]
[Source "ChessBase"]
[SourceQuality "1"]
[TimeControl "900+10"]

1. e4 {[%emt 0:00:00]} d5 {[%emt 0:00:00]} 2. exd5 {[%emt 0:00:05]} Qxd5 {[%emt 0:00:00]} 3. Nc3 {[%emt 0:00:03]} Qd6 {[%emt 0:00:00]} 4. d4 {[%emt 0:00:10]} Nf6 {[%emt 0:00:00]} 5. Nf3 {[%emt 0:00:04]} c6 {[%emt 0:00:00]} 6. Ne5 {[%emt 0:00:07]} Nbd7 {[%emt 0:00:04]} 7. Nc4 {[%emt 0:00:04]} Qc7 {[%emt 0:00:05]} 8. Qf3 {[%emt 0:00:16]} Nb6 {[%emt 0:00:07]} 9. Bf4 {[%emt 0:00:14]} Qd7 {[%emt 0:00:03]} 10. Be5 {[%emt 0:06:11]} Qg4 {[%emt 0:00:29]} 11. Qxg4 {[%emt 0:00:19]} Nxg4 {[%emt 0:00:05]} 12. Bg3 {[%emt 0:00:40]} Bf5 {[%emt 0:00:23]} 13. O-O-O {[%emt 0:00:28]} Nxc4 {[%emt 0:00:02]} 14. Bxc4 {[%emt 0:00:03]} e6 {[%emt 0:00:02]} 15. Rhe1 {[%emt 0:00:47]} O-O-O {[%emt 0:00:53]} 16. f3 {[%emt 0:00:04]} Nf6 {[%emt 0:00:05]} 17. Ne4 {[%emt 0:00:03]} Be7 {[%emt 0:00:36]} 18. c3 {[%emt 0:01:18]} h5 {[%emt 0:00:23]} 19. Bd3 {[%emt 0:00:42]} h4 {[%emt 0:00:32]} 20. Bf4 {[%emt 0:00:08]} Nd5 {[%emt 0:00:14]} 21. Bd2 {[%emt 0:00:07]} Rhg8 {[%emt 0:02:08]} 22. Bc2 {[%emt 0:00:12]} g5 {[%emt 0:00:46]} 23. Nf2 {[%emt 0:00:04]} Bxc2 {[%emt 0:00:07]} 24. Kxc2 {[%emt 0:00:01]} Bd6 {[%emt 0:00:23]} 25. Ne4 {[%emt 0:00:19]} Bf4 {[%emt 0:00:21]} 26. g3 {[%emt 0:00:07]} hxg3 {[%emt 0:00:09]} 27. hxg3 {[%emt 0:00:01]} Bxd2 {[%emt 0:00:07]} 28. Rxd2 {[%emt 0:00:01]} Ne7 {[%emt 0:00:28]} 29. Rh2 {[%emt 0:00:43]} Nf5 {[%emt 0:00:11]} 30. g4 {[%emt 0:00:37]} Nd6 {[%emt 0:00:21]} 31. Rh7 {[%emt 0:00:24]} Nxe4 {[%emt 0:01:37]} 32. fxe4 {[%emt 0:00:02]} Rh8 {[%emt 0:00:38]} 33. Reh1 {[%emt 0:02:40]} Rxh7 {[%emt 0:00:02]} 34. Rxh7 {[%emt 0:00:01]} Rf8 {[%emt 0:00:02]} 35. Rg7 {[%emt 0:00:05]} f6 {[%emt 0:00:02]} 36. a4 {[%emt 0:00:32]} Rh8 {[%emt 0:00:14]} 37. Rf7 {[%emt 0:00:53]} Rh2+ {[%emt 0:00:19]} 38. Kd3 {[%emt 0:00:01]} Rh3+ {[%emt 0:00:20]} 39. Kc4 {[%emt 0:00:01]} Re3 {[%emt 0:00:02]} 40. Kc5 {[%emt 0:00:01]} Rxe4 {[%emt 0:00:15]} 41. Kd6 {[%emt 0:00:01]} b6 {[%emt 0:00:02]} 42. Kxc6 {[%emt 0:00:15]} Kd8 {[%emt 0:00:01]} 43. Kd6 {[%emt 0:00:01]} Ke8 {[%emt 0:00:04]} 44. Rxf6 {[%emt 0:00:03]} Rxg4 {[%emt 0:00:03]} 45. Rxe6+ {[%emt 0:00:10]} Kf8 {[%emt 0:00:04]} 46. Re2 {[%emt 0:00:31]} Rg1 {[%emt 0:00:16]} 47. d5 {[%emt 0:00:02]} g4 {[%emt 0:00:14]} 48. Kc7 {[%emt 0:00:07]} 1-0

[Event "EIRCC 2019"]
[Site "Tallinn"]
[Date "2019.12.05"]
[Round "1.29"]
[White "Limanovska, Elizabete"]
[Black "Pershin, Denis"]
[Result "0-1"]
[ECO "B15"]
[WhiteElo "1945"]
[BlackElo "2509"]
[Annotator "ChessBase"]
[PlyCount "58"]
[EventDate "2019.12.05"]
[EventType "swiss"]
[EventCountry "EST"]
[SourceTitle "playchess.com"]
[Source "ChessBase"]
[SourceQuality "1"]
[TimeControl "900+10"]

1. e4 {[%emt 0:00:00]} c6 {[%emt 0:00:00]} 2. d4 {[%emt 0:00:00]} d5 {[%emt 0:00:00]} 3. Nc3 {[%emt 0:00:00]} dxe4 {[%emt 0:00:00]} 4. Nxe4 {[%emt 0:00:00]} Nf6 {[%emt 0:00:08]} 5. Nxf6+ {[%emt 0:00:02]} exf6 {[%emt 0:00:01]} 6. c3 {[%emt 0:00:23]} Bd6 {[%emt 0:00:04]} 7. Bd3 {[%emt 0:00:24]} O-O {[%emt 0:00:03]} 8. Ne2 {[%emt 0:00:09]} Re8 {[%emt 0:00:05]} 9. O-O {[%emt 0:00:07]} Qc7 {[%emt 0:00:05]} 10. h3 {[%emt 0:00:38]} Nd7 {[%emt 0:00:03]} 11. Be3 {[%emt 0:00:54]} Nf8 {[%emt 0:00:04]} 12. Qd2 {[%emt 0:01:19]} Bd7 {[%emt 0:00:22]} 13. c4 {[%emt 0:00:09]} Rad8 {[%emt 0:00:35]} 14. Rfe1 {[%emt 0:00:20]} Ng6 {[%emt 0:00:08]} 15. Qc2 {[%emt 0:00:26]} Qc8 {[%emt 0:00:14]} 16. Ng3 {[%emt 0:00:38]} Bb8 {[%emt 0:01:31]} 17. Rad1 {[%emt 0:00:50]} Nh4 {[%emt 0:00:18]} 18. Bxh7+ {[%emt 0:02:59]} Kh8 {[%emt 0:00:02]} 19. Be4 {[%emt 0:00:01]} Bxh3 {[%emt 0:01:19]} 20. Bc1 {[%emt 0:04:09]} Bg4 {[%emt 0:00:17]} 21. Ne2 {[%emt 0:02:16]} Bh5 {[%emt 0:02:02]} 22. f3 {[%emt 0:00:14]} g5 {[%emt 0:03:39]} 23. Kf2 {[%emt 0:00:13]} Kg7 {[%emt 0:00:34]} 24. Rh1 {[%emt 0:00:02]} Bg6 {[%emt 0:00:17]} 25. Bxg6 {[%emt 0:01:17]} fxg6 {[%emt 0:00:42]} 26. Bf4 {[%emt 0:00:33]} Rxe2+ {[%emt 0:01:01]} 27. Qxe2 {[%emt 0:00:01]} Re8 {[%emt 0:00:01]} 28. Qd3 {[%emt 0:00:15]} Bxf4 {[%emt 0:00:05]} 29. g3 {[%emt 0:00:01]} Re3 {[%emt 0:00:26]} 0-1

[Event "EIRCC 2019"]
[Site "Tallinn"]
[Date "2019.12.05"]
[Round "1.30"]
[White "Sebenik, Matej"]
[Black "Narva, Triin"]
[Result "1-0"]
[ECO "D11"]
[WhiteElo "2504"]
[BlackElo "1944"]
[Annotator "ChessBase"]
[PlyCount "55"]
[EventDate "2019.12.05"]
[EventType "swiss"]
[EventCountry "EST"]
[SourceTitle "playchess.com"]
[Source "ChessBase"]
[SourceQuality "1"]
[TimeControl "900+10"]

1. Nf3 {[%emt 0:00:00]} d5 {[%emt 0:00:00]} 2. d4 {[%emt 0:00:00]} Nf6 {[%emt 0:00:08]} 3. c4 {[%emt 0:00:02]} c6 {[%emt 0:00:41]} 4. e3 {[%emt 0:00:07]} g6 {[%emt 0:01:13]} 5. Nc3 {[%emt 0:00:17]} Bg7 {[%emt 0:00:23]} 6. Be2 {[%emt 0:00:04]} O-O {[%emt 0:02:54]} 7. O-O {[%emt 0:00:05]} Nbd7 {[%emt 0:00:55]} 8. cxd5 {[%emt 0:02:37]} Nxd5 {[%emt 0:02:03]} 9. Bd2 {[%emt 0:05:31]} N7f6 {[%emt 0:02:14]} 10. Rc1 {[%emt 0:00:02]} Qd6 {[%emt 0:01:47]} 11. a3 {[%emt 0:00:20]} Bf5 {[%emt 0:01:47]} 12. Qb3 {[%emt 0:01:57]} Rab8 {[%emt 0:00:44]} 13. Rfd1 {[%emt 0:00:04]} Rfd8 {[%emt 0:00:26]} 14. Be1 {[%emt 0:00:36]} Be6 {[%emt 0:00:38]} 15. Qa4 {[%emt 0:00:04]} a6 {[%emt 0:00:28]} 16. Ne5 {[%emt 0:00:48]} Nd7 {[%emt 0:00:45]} 17. Ne4 {[%emt 0:02:26]} N7b6 {[%emt 0:00:14]} 18. Qa5 {[%emt 0:01:32]} Qc7 {[%emt 0:00:04]} 19. Nd3 {[%emt 0:00:41]} Nd7 {[%emt 0:00:22]} 20. Qa4 {[%emt 0:00:07]} b5 {[%emt 0:00:11]} 21. Qc2 {[%emt 0:00:06]} Rdc8 {[%emt 0:00:06]} 22. Nec5 {[%emt 0:00:06]} Nxc5 {[%emt 0:00:16]} 23. Nxc5 {[%emt 0:00:02]} Qd6 {[%emt 0:00:18]} 24. Nxa6 {[%emt 0:00:11]} Ra8 {[%emt 0:00:05]} 25. Nc5 {[%emt 0:00:02]} Nf6 {[%emt 0:00:15]} 26. Bf3 {[%emt 0:00:13]} Bd5 {[%emt 0:00:11]} 27. e4 {[%emt 0:00:02]} Be6 {[%emt 0:00:05]} 28. e5 {[%emt 0:00:01]} 1-0

[Event "EIRCC 2019"]
[Site "Tallinn"]
[Date "2019.12.05"]
[Round "1.31"]
[White "Mierins, Emils Janis"]
[Black "Lobanov, Sergei"]
[Result "*"]
[ECO "C75"]
[WhiteElo "1944"]
[BlackElo "2483"]
[Annotator "RC"]
[PlyCount "162"]
[EventDate "2019.12.05"]
[EventType "swiss"]
[EventCountry "EST"]
[SourceTitle "playchess.com"]
[Source "ChessBase"]
[SourceQuality "1"]
[TimeControl "900+10"]

1. e4 {[%emt 0:00:00]} e5 {[%emt 0:00:00]} 2. Nf3 {[%emt 0:00:00]} Nc6 {[%emt 0:00:00]} 3. Bb5 {[%emt 0:00:00]} a6 {[%emt 0:00:00]} 4. Ba4 {[%emt 0:00:02]} d6 {[%emt 0:00:00]} 5. c3 {[%emt 0:00:09]} Bd7 {[%emt 0:00:00]} 6. Bc2 {[%emt 0:00:01]} Nge7 {[%emt 0:00:17]} 7. O-O {[%emt 0:00:05]} Ng6 {[%emt 0:00:09]} 8. Re1 {[%emt 0:00:08]} Be7 {[%emt 0:00:01]} 9. d4 {[%emt 0:00:04]} O-O {[%emt 0:00:03]} 10. Be3 {[%emt 0:00:32]} Kh8 {[%emt 0:00:42]} 11. Nbd2 {[%emt 0:00:39]} Qc8 {[%emt 0:00:01]} 12. Nf1 {[%emt 0:00:29]} f5 {[%emt 0:00:42]} 13. exf5 {[%emt 0:00:26]} Bxf5 {[%emt 0:00:02]} 14. Bxf5 {[%emt 0:00:10]} Qxf5 {[%emt 0:00:01]} 15. Ng3 {[%emt 0:00:15]} Qf7 {[%emt 0:00:06]} 16. Qb3 {[%emt 0:00:11]} Qxb3 {[%emt 0:02:14]} 17. axb3 {[%emt 0:00:02]} Nh4 {[%emt 0:00:07]} 18. Nxh4 {[%emt 0:01:25]} Bxh4 {[%emt 0:00:01]} 19. Rad1 {[%emt 0:00:54]} Kg8 {[%emt 0:00:02]} 20. dxe5 {[%emt 0:00:48]} Nxe5 {[%emt 0:00:02]} 21. Rd4 {[%emt 0:00:16]} Bd8 {[%emt 0:00:41]} 22. h3 {[%emt 0:00:33]} a5 {[%emt 0:00:33]} 23. Ne2 {[%emt 0:01:02]} Bf6 {[%emt 0:01:12]} 24. Ra1 {[%emt 0:01:05]} Kf7 {[%emt 0:00:44]} 25. Rdd1 {[%emt 0:03:04]} Ke7 {[%emt 0:00:49]} 26. Nf4 {[%emt 0:00:30]} Kd7 {[%emt 0:01:28]} 27. Nd5 {[%emt 0:00:10]} Bd8 {[%emt 0:00:36]} 28. c4 {[%emt 0:00:31]} Ra6 {[%emt 0:01:49]} 29. Bd4 {[%emt 0:00:36]} Bf6 {[%emt 0:01:03]} 30. Bc3 {[%emt 0:01:32]} Nc6 {[%emt 0:01:28]} 31. Bxf6 {[%emt 0:02:11]} gxf6 {[%emt 0:00:01]} 32. Re1 {[%emt 0:00:30]} Rf7 {[%emt 0:00:01]} 33. Re4 {[%emt 0:00:29]} Ne7 {[%emt 0:00:13]} 34. Nf4 {[%emt 0:00:59]} Rb6 {[%emt 0:00:30]} 35. Re3 {[%emt 0:00:42]} Ra6 {[%emt 0:01:34]} 36. Rae1 {[%emt 0:00:15]} Ng6 {[%emt 0:01:03]} 37. Nd5 {[%emt 0:00:08]} c6 {[%emt 0:00:28]} 38. Nc3 {[%emt 0:00:01]} f5 {[%emt 0:00:12]} 39. Rd1 {[%emt 0:00:18]} Ra8 {[%emt 0:01:04]} 40. Red3 {[%emt 0:00:05]} Rf6 {[%emt 0:00:00]} 41. Na4 {[%emt 0:00:01]} Kc7 {[%emt 0:00:04]} 42. c5 {[%emt 0:00:28]} d5 {[%emt 0:00:30]} 43. Nb6 {[%emt 0:00:01]} Re8 {[%emt 0:00:17]} 44. Ra1 {[%emt 0:00:02]} Nf4 {[%emt 0:00:13]} 45. Rf3 {[%emt 0:00:18]} Ne2+ {[%emt 0:00:09]} 46. Kh2 {[%emt 0:00:11]} Nd4 {[%emt 0:00:49]} 47. Rd3 {[%emt 0:00:01]} Nb5 {[%emt 0:00:24]} 48. Rxa5 {[%emt 0:00:05]} f4 {[%emt 0:00:15]} 49. Rxb5 {[%emt 0:00:09]} Rfe6 {[%emt 0:00:03]} 50. Ra5 {[%emt 0:00:08]} Re2 {[%emt 0:00:01]} 51. Rf3 {[%emt 0:00:06]} R2e4 {[%emt 0:00:07]} 52. Ra4 {[%emt 0:00:05]} Rxa4 {[%emt 0:00:21]} 53. Nxa4 {[%emt 0:00:22]} Re4 {[%emt 0:00:03]} 54. Nc3 {[%emt 0:00:05]} Rb4 {[%emt 0:00:09]} 55. g3 {[%emt 0:00:09]} fxg3+ {[%emt 0:00:08]} 56. fxg3 {[%emt 0:00:01]} b6 {[%emt 0:00:04]} 57. Rf7+ {[%emt 0:00:09]} Kc8 {[%emt 0:00:00]} 58. cxb6 {[%emt 0:00:44]} Rxb6 {[%emt 0:00:01]} 59. Rxh7 {[%emt 0:00:07]} Rxb3 {[%emt 0:00:01]} 60. Nd1 {[%emt 0:00:15]} Rd3 {[%emt 0:00:01]} 61. Nf2 {[%emt 0:00:02]} Rd2 {[%emt 0:00:01]} 62. Kg2 {[%emt 0:00:02]} Rxb2 {[%emt 0:00:04]} 63. Kf3 {[%emt 0:00:06]} c5 {[%emt 0:00:35]} 64. g4 {[%emt 0:00:02]} c4 {[%emt 0:00:04]} 65. g5 {[%emt 0:00:10]} Rb6 {[%emt 0:00:08]} 66. Ke3 {[%emt 0:00:23]} c3 {[%emt 0:00:12]} 67. Kd3 {[%emt 0:00:17]} d4 {[%emt 0:00:02]} 68. Kxd4 {[%emt 0:00:04]} c2 {[%emt 0:00:01]} 69. Nd3 {[%emt 0:00:13]} Rb3 {[%emt 0:00:33]} 70. Nc1 {[%emt 0:00:22]} Rb1 {[%emt 0:00:00]} 71. Kd3 {[%emt 0:00:02]} Rxc1 {[%emt 0:00:02]} 72. h4 {[%emt 0:00:10]} Kd8 {[%emt 0:00:24]} 73. Kd2 {[%emt 0:00:02]} Rg1 {[%emt 0:00:02]} 74. Kxc2 {[%emt 0:00:02]} Rg3 {[%emt 0:00:05]} 75. Kd2 {[%emt 0:00:02]} Ke8 {[%emt 0:00:02]} 76. Ke2 {[%emt 0:00:01]} Kf8 {[%emt 0:00:01]} 77. Kf2 {[%emt 0:00:03]} Ra3 {[%emt 0:00:07]} 78. Kg2 {[%emt 0:00:05]} Rb3 {[%emt 0:00:04]} 79. Rh6 {[%emt 0:00:05]} Kg7 {[%emt 0:00:07]} 80. Rf6 {[%emt 0:00:07]} Rb1 {[%emt 0:00:45]} 81. Kg3 {[%emt 0:00:28]} Rg1+ {[%emt 0:00:01]} *

[Event "EIRCC 2019"]
[Site "Tallinn"]
[Date "2019.12.05"]
[Round "1.32"]
[White "Potapov, Pavel"]
[Black "Vidruska, Renate"]
[Result "1-0"]
[ECO "C42"]
[WhiteElo "2482"]
[BlackElo "1943"]
[Annotator "ChessBase"]
[PlyCount "71"]
[EventDate "2019.12.05"]
[EventType "swiss"]
[EventCountry "EST"]
[SourceTitle "playchess.com"]
[Source "ChessBase"]
[SourceQuality "1"]
[TimeControl "900+10"]

1. e4 {[%emt 0:00:00]} e5 {[%emt 0:00:00]} 2. Nf3 {[%emt 0:00:00]} Nf6 {[%emt 0:00:00]} 3. Nxe5 {[%emt 0:00:19]} d6 {[%emt 0:00:02]} 4. Nc4 {[%emt 0:00:15]} Nxe4 {[%emt 0:00:05]} 5. Qe2 {[%emt 0:00:02]} Qe7 {[%emt 0:00:53]} 6. d3 {[%emt 0:00:01]} Nf6 {[%emt 0:00:28]} 7. Bg5 {[%emt 0:00:03]} Qxe2+ {[%emt 0:00:36]} 8. Bxe2 {[%emt 0:00:02]} Be7 {[%emt 0:01:59]} 9. Nc3 {[%emt 0:00:02]} h6 {[%emt 0:00:47]} 10. Bh4 {[%emt 0:00:07]} Be6 {[%emt 0:01:52]} 11. d4 {[%emt 0:01:44]} Nbd7 {[%emt 0:01:47]} 12. O-O-O {[%emt 0:00:17]} d5 {[%emt 0:01:29]} 13. Ne3 {[%emt 0:01:16]} c6 {[%emt 0:00:37]} 14. h3 {[%emt 0:00:22]} g5 {[%emt 0:02:54]} 15. Bg3 {[%emt 0:00:04]} Ne4 {[%emt 0:00:01]} 16. Nxe4 {[%emt 0:00:24]} dxe4 {[%emt 0:00:01]} 17. c4 {[%emt 0:00:24]} Nb6 {[%emt 0:00:49]} 18. d5 {[%emt 0:00:48]} cxd5 {[%emt 0:00:01]} 19. cxd5 {[%emt 0:00:01]} Bd7 {[%emt 0:00:11]} 20. Be5 {[%emt 0:01:15]} O-O {[%emt 0:00:57]} 21. d6 {[%emt 0:00:14]} Bd8 {[%emt 0:00:04]} 22. g4 {[%emt 0:00:41]} f5 {[%emt 0:00:31]} 23. gxf5 {[%emt 0:00:58]} Bxf5 {[%emt 0:00:00]} 24. h4 {[%emt 0:00:41]} Be6 {[%emt 0:00:34]} 25. hxg5 {[%emt 0:00:47]} Bxg5 {[%emt 0:00:04]} 26. Rdg1 {[%emt 0:00:12]} Rfc8+ {[%emt 0:01:27]} 27. Kb1 {[%emt 0:00:23]} Kf7 {[%emt 0:00:04]} 28. Bh5+ {[%emt 0:00:43]} Kf8 {[%emt 0:00:00]} 29. Bg6 {[%emt 0:01:22]} Nc4 {[%emt 0:00:31]} 30. Nxc4 {[%emt 0:00:50]} Rxc4 {[%emt 0:00:11]} 31. Rxg5 {[%emt 0:00:17]} hxg5 {[%emt 0:00:05]} 32. Rh8+ {[%emt 0:00:06]} Bg8 {[%emt 0:00:01]} 33. Bh7 {[%emt 0:00:08]} Kf7 {[%emt 0:00:02]} 34. Bxg8+ {[%emt 0:00:11]} Rxg8 {[%emt 0:00:04]} 35. Rxg8 {[%emt 0:00:01]} Kxg8 {[%emt 0:00:02]} 36. d7 {[%emt 0:00:02]} 1-0

[Event "EIRCC 2019"]
[Site "Tallinn"]
[Date "2019.12.05"]
[Round "1.33"]
[White "Narva, Regina"]
[Black "Ionov, Sergey"]
[Result "1-0"]
[ECO "B43"]
[WhiteElo "1942"]
[BlackElo "2480"]
[Annotator "ChessBase"]
[PlyCount "77"]
[EventDate "2019.12.05"]
[EventType "swiss"]
[EventCountry "EST"]
[SourceTitle "playchess.com"]
[Source "ChessBase"]
[SourceQuality "1"]
[TimeControl "900+10"]

1. e4 {[%emt 0:00:00]} c5 {[%emt 0:00:00]} 2. Nc3 {[%emt 0:00:00]} a6 {[%emt 0:00:07]} 3. Nf3 {[%emt 0:00:03]} e6 {[%emt 0:00:16]} 4. d4 {[%emt 0:00:02]} cxd4 {[%emt 0:00:02]} 5. Nxd4 {[%emt 0:00:01]} Qc7 {[%emt 0:00:24]} 6. g3 {[%emt 0:00:05]} Bb4 {[%emt 0:01:03]} 7. Nde2 {[%emt 0:00:03]} Nf6 {[%emt 0:00:03]} 8. Bg2 {[%emt 0:00:01]} O-O {[%emt 0:00:06]} 9. O-O {[%emt 0:00:01]} Nc6 {[%emt 0:00:26]} 10. h3 {[%emt 0:00:54]} Be7 {[%emt 0:00:04]} 11. g4 {[%emt 0:00:13]} d6 {[%emt 0:00:02]} 12. Ng3 {[%emt 0:00:09]} b5 {[%emt 0:00:12]} 13. a3 {[%emt 0:00:46]} Bb7 {[%emt 0:00:04]} 14. Kh2 {[%emt 0:02:04]} Nd7 {[%emt 0:02:33]} 15. f4 {[%emt 0:00:20]} Rfe8 {[%emt 0:00:57]} 16. g5 {[%emt 0:00:31]} Bf8 {[%emt 0:00:07]} 17. h4 {[%emt 0:02:36]} Nb6 {[%emt 0:01:51]} 18. h5 {[%emt 0:00:23]} Rad8 {[%emt 0:01:12]} 19. Qg4 {[%emt 0:01:02]} b4 {[%emt 0:02:19]} 20. Nce2 {[%emt 0:03:13]} bxa3 {[%emt 0:01:00]} 21. bxa3 {[%emt 0:00:06]} Nc4 {[%emt 0:01:08]} 22. g6 {[%emt 0:00:21]} h6 {[%emt 0:01:21]} 23. gxf7+ {[%emt 0:01:12]} Qxf7 {[%emt 0:00:02]} 24. Rb1 {[%emt 0:00:01]} Ba8 {[%emt 0:00:24]} 25. f5 {[%emt 0:00:12]} N6e5 {[%emt 0:00:41]} 26. Qh3 {[%emt 0:00:17]} Qa7 {[%emt 0:01:23]} 27. fxe6 {[%emt 0:00:46]} Ne3 {[%emt 0:00:04]} 28. Bxe3 {[%emt 0:02:06]} Qxe3 {[%emt 0:00:01]} 29. Nf4 {[%emt 0:00:02]} Be7 {[%emt 0:00:24]} 30. Rb3 {[%emt 0:00:47]} Qd2 {[%emt 0:00:14]} 31. Ng6 {[%emt 0:01:00]} Nxg6 {[%emt 0:00:27]} 32. hxg6 {[%emt 0:00:02]} Bg5 {[%emt 0:00:23]} 33. Rf7 {[%emt 0:00:09]} Qxc2 {[%emt 0:00:48]} 34. Rbf3 {[%emt 0:00:10]} d5 {[%emt 0:00:10]} 35. Nf5 {[%emt 0:00:09]} dxe4 {[%emt 0:00:09]} 36. Rxg7+ {[%emt 0:00:05]} Kh8 {[%emt 0:00:01]} 37. Rh7+ {[%emt 0:00:25]} Kg8 {[%emt 0:00:01]} 38. Nxh6+ Bxh6 39. Rh8+ 1-0